Cogmind - Beta 16 @@@ ROGUE MODE // 2025.12.01 @ 12:34:21 Player: Boris Result: Destroyed by Armor Guard with Advanced Plasma Rifle Performance ------------- Evolutions (6) 3000 Regions Visited (18) 3600 Robots Destroyed (395) 1975 Value Destroyed (16678) 16678 Prototype IDs (49) 980 Alien Tech Used (0) 0 Bonus (5183) 5183 TOTAL SCORE: 31416 Bonus ------- Triggered High Security 500 High Alert Combat Kills 4402 Follower Combat Kills 1041 Network Hubs Disabled 600 Registered with UFD 300 Met Optimus in HQ 500 Met Data Miner 300 Built Enhanced Grunts 300 Met R17 at Cetus 500 Friendly Fire -3260 Cogmind --------- Core Integrity 0/1150 Matter 108/300 Energy 23/100 System Corruption 13% Temperature Cool (9) Movement Core (700) Ox13 Location -4/Armory Parts ------- > --- POWER (2) -------- (None) > --- PROPULSION (4) --- (None) > --- UTILITY (9) ------ High-capacity Storage Unit Improved Target Analyzer > --- WEAPON (4) ------- (None) > --- INVENTORY (20) --- Experimental Coolant Injector High-capacity Matter Pod (0) Deep Structural Scanner Experimental EM Shield PL-3XN's Ring of Power PL-3XN's Ring of Power Peak State ------------ > --- POWER ------------ Compact Particle Reactor Quantum Reactor > --- PROPULSION ------- Enhanced Biometal Leg Enhanced Biometal Leg Enhanced Biometal Leg Enhanced Biometal Leg > --- UTILITY ---------- Advanced Cooling System Experimental Coolant Injector High-capacity Storage Unit Seismic Detector Improved Targeting Computer Experimental Targeting Computer Experimental Targeting Computer Centrium Medium Armor Plating Centrium Medium Armor Plating > --- WEAPON ----------- Wave Gun KN-7UR's Autopenetrator HERF Cannon Railgun > --- INVENTORY -------- Fusion Compressor Enhanced Biometal Leg Enhanced Biometal Leg High-capacity Matter Pod Deep Structural Scanner Advanced Transmission Jammer Experimental EM Shield Experimental EM Shield Improved System Shield Personal Teleporter v0.10 Wave Gun EMDS KE Penetrator KE Penetrator Heavy Proton Missile Launcher Tiamat Missile Launcher Plasma Cutter PL-3XN's Ring of Power PL-3XN's Ring of Power [Rating: 144] Favorites ----------- Power Compact Particle Reactor Engine Improved Ion Engine Power Core Enhanced Fission Core Reactor Compact Particle Reactor Propulsion Armored Wheel Treads Armored Treads Leg Enhanced Flexi-carbon Leg Wheel Armored Wheel Hover Unit Cooled Gravmag System Utility High-capacity Storage Unit Device Deep Structural Scanner Storage High-capacity Storage Unit Processor Spectral Analyzer Hackware Hacking Suite Protection Centrium Light Armor Plating Weapon Improved EM Shotgun Energy Gun Improved EM Shotgun Energy Cannon Advanced Beam Cannon Ballistic Gun Gauss Rifle Ballistic Cannon Mini Assault Cannon Launcher Heavy Proton Missile Launcher Special Weapon Plasma Cutter Impact Weapon Power Maul Slashing Weapon Great Axe Special Melee Weapon Datajack Build | -11 -10 -10 -9 -9 -9 -9 -6 -6 -6 -6 -5 -5 -5 -5 -5 -5 -4 -4 ------- Run | Yrd Mat Min Mat Sto Rec Scr Fac Low Low Dat Pro Fac Ext Cet Arc Hub Fac Arm Slots Evolved 12 | . . . 2 . . . 6 . . . . 2 . . . . 2 . Power 1 | . . . . . . . 1 . . . . . . . . . . . Propulsion 2 | . . . . . . . 2 . . . . . . . . . . . Utility 7 | . . . 1 . . . 3 . . . . 1 . . . . 2 . Weapon 2 | . . . 1 . . . . . . . . 1 . . . . . . Parts Attached 231 | 6 5 3 27 14 5 5 51 2 . 11 5 15 9 6 5 25 8 29 Power 20 | 1 . 1 3 . . 1 6 . . 1 . . . 1 . 2 . 4 Engine 10 | 1 . 1 3 . . 1 4 . . . . . . . . . . . Core 3 | . . . . . . . 1 . . 1 . . . . . . . 1 Reactor 7 | . . . . . . . 1 . . . . . . 1 . 2 . 3 Propulsion 48 | 2 . 1 4 2 1 2 14 . . 2 3 . 3 2 . 8 . 4 Treads 14 | 2 . 1 3 1 . . 3 . . . . . . 2 . 2 . . Leg 21 | . . . . . . . 3 . . 2 3 . 3 . . 6 . 4 Wheel 11 | . . . 1 . 1 2 7 . . . . . . . . . . . Hover 2 | . . . . 1 . . 1 . . . . . . . . . . . Flight . | . . . . . . . . . . . . . . . . . . . Utility 84 | 1 2 1 7 3 1 1 19 2 . 5 2 8 2 2 3 10 3 12 Device 39 | . 1 1 4 . . 1 10 1 . 2 2 2 1 1 3 4 1 5 Storage 6 | 1 1 . . 1 1 . . . . 1 . 1 . . . . . . Processor 14 | . . . 1 . . . 4 . . . . 3 . . . 2 1 3 Hackware 15 | . . . 1 1 . . 5 . . . . 2 . . . 2 . 4 Protection 10 | . . . 1 1 . . . 1 . 2 . . 1 1 . 2 1 . Artifact . | . . . . . . . . . . . . . . . . . . . Weapon 79 | 2 3 . 13 9 3 1 12 . . 3 . 7 4 1 2 5 5 9 Energy Gun 27 | 2 . . 9 8 2 . 1 . . . . 1 . . . 1 . 3 Energy Cannon 12 | . 2 . . 1 1 . 2 . . 1 . 1 . . . 1 1 2 Ballistic Gun 25 | . . . 1 . . 1 4 . . . . 5 3 . 2 2 4 3 Ballistic Cannon 2 | . . . . . . . 1 . . . . . . . . . . 1 Launcher 7 | . 1 . 1 . . . 3 . . 1 . . . . . 1 . . Special Weapon 2 | . . . . . . . . . . 1 . . 1 . . . . . Impact Weapon 2 | . . . 1 . . . 1 . . . . . . . . . . . Slashing Weapon 1 | . . . . . . . . . . . . . . 1 . . . . Piercing Weapon . | . . . . . . . . . . . . . . . . . . . Special Melee Weapon 1 | . . . 1 . . . . . . . . . . . . . . . Unidentified Prototypes 32 | . . . 4 4 1 . 9 . . 3 1 . . 2 1 6 . 1 Corrupted Parts 13 | . . . . . . . . . . . 3 . . 2 1 5 . 2 System Corruption 103 | . . . . . . . . . . . 28 . . 11 9 43 . 12 Parts Lost 64 | . . 1 1 . . 1 7 . . 1 . 4 1 . . 7 2 39 Power 7 | . . . . . . . 2 . . . . . . . . . . 5 Propulsion 16 | . . 1 . . . 1 4 . . . . . 1 . . 1 . 8 Utility 22 | . . . 1 . . . 1 . . . . 3 . . . 3 1 13 Weapon 19 | . . . . . . . . . . 1 . 1 . . . 3 1 13 Highest Loss Streak 11 | . . 1 1 . . 1 3 . . 1 . 3 1 . . 5 2 11 To Critical Strikes 2 | . . . . . . . . . . . . . . . . 1 . 1 Average Backups 16 | 1 10 14 14 14 15 18 18 17 18 17 17 17 17 17 17 17 16 13 Power . | . 1 1 1 1 1 1 . 2 2 1 1 1 1 . . . . . Propulsion 1 | . . . 3 3 3 4 1 . 1 1 2 1 . . . 1 2 1 Utility 6 | . 2 4 6 5 6 6 7 6 6 5 7 8 7 6 7 8 6 6 Weapon 5 | . 6 7 3 4 4 4 6 6 6 5 3 3 6 7 7 4 5 5 Tool/Special . | . . . . . . . . . . . . . . . . . . . Unused Backups 26 | . 2 4 6 . . . 1 . . 2 . 1 . 3 3 . 1 3 Power 1 | . . . 1 . . . . . . . . . . . . . . . Propulsion 3 | . . 1 1 . . . . . . 1 . . . . . . . . Utility 10 | . . 1 . . . . 1 . . . . 1 . 3 2 . . 2 Weapon 12 | . 2 2 4 . . . . . . 1 . . . . 1 . 1 1 Tool/Special . | . . . . . . . . . . . . . . . . . . . Average Slot Usage (%) 95 | . 96 100 99 98 100 99 96 86 86 79 93 98 100 93 86 85 97 84 Engine 6 | . 13 14 11 10 11 11 9 . . . . . . . . . . . Core 1 | . . . . . . . . 6 6 6 6 5 5 2 . . . . Reactor 3 | . . . . . . . . 6 6 6 6 5 5 7 11 11 10 7 Treads 9 | . 27 28 21 20 6 . 11 . . . . . . 5 11 10 . . Leg 4 | . . . . . . . . . . 4 13 23 23 11 . . 21 18 Wheel 6 | . . . . . 15 21 12 13 13 10 5 . . . . . . . Device 8 | . 11 14 8 2 . 3 10 13 13 12 12 6 5 5 10 9 16 13 Storage 8 | . 14 14 11 11 11 11 6 6 6 6 6 5 5 5 5 5 5 5 Processor 7 | . . . 1 . . . 10 13 13 13 13 16 17 17 17 15 14 14 Hackware 4 | . . . . 8 11 6 7 . . . . 4 5 4 . 1 . 1 Protection 6 | . . . 10 10 11 11 3 5 6 5 6 3 5 5 3 5 8 3 Energy Gun 10 | . 17 . 23 32 28 19 . 6 6 . . . 2 . . 1 2 1 Energy Cannon 5 | . 10 28 . . 4 11 7 . . 2 6 5 . . . . 1 3 Ballistic Gun 8 | . . . 6 . . 2 7 11 13 4 11 10 19 16 22 17 14 10 Peak Build Rating 144 | 6 9 9 27 36 37 36 93 88 85 96 100 108 109 127 131 140 144 144 Average Rating 62 | 4 7 8 23 29 32 33 60 83 81 80 94 102 105 117 125 125 134 113 On Entrance 69 | . 6 9 9 27 32 32 35 87 81 81 93 100 106 105 127 131 133 134 Avg Prop Armor Cover (%) 12 | . . . . 9 9 4 15 . . 5 5 . . 5 . 3 . . Naked Turns . | . . . . . . . . . . . . . . . . . . . Heaviest Build 114 | 14 32 32 41 42 60 65 94 88 89 99 102 104 98 98 95 105 114 110 Greatest Support 160 | 40 40 40 42 42 24 24 56 56 56 56 112 112 112 160 160 160 120 120 Greatest Overweight (x) 7 | 2 . . 1 3 3 5 7 1 1 3 3 . . 1 1 1 . 3 Average Overweight (x) 1 | . . . . . 2 2 2 1 1 1 2 . . . . . . . Largest Inventory Capacity 25 | 8 15 15 15 25 20 20 20 20 20 20 20 20 20 20 20 20 20 20 Average Capacity 18 | 6 14 15 15 15 16 20 20 20 20 20 20 20 20 20 20 20 20 20 Most Carried 20 | 2 15 15 15 15 17 20 20 20 20 20 20 20 20 20 20 20 20 20 Average Carried 17 | 1 10 14 14 14 15 18 19 19 20 19 19 19 19 19 19 19 19 16 Final Capacity 20 | 8 15 15 15 15 20 20 20 20 20 20 20 20 20 20 20 20 20 20 Final Carried 20 | 2 15 15 14 15 17 20 20 20 20 20 20 20 20 20 20 20 20 19 Class Distribution -------------------- 18% | Tank 18% | Scavenger-Gunner 15% | Mutant 11% | Scavenger-Tank 10% | Commander-Tank 8% | Skirmisher 5% | Scavenger-Skirmisher 4% | Scavenger-Mutant 3% | Hacker-Mutant Dominant Class ---------------- Mutant | -10/Materials Mutant | -10/Mines Tank | -9/Materials Tank | -9/Storage Tank | -9/Recycling Commander-Tank | -9/Scraptown Hacker-Mutant | -6/Factory Skirmisher | -6/Lower Caves Skirmisher | -6/Lower Caves Scavenger-Gunner | -6/Data Miner Scavenger-Skirmisher | -5/Proximity Caves Scavenger-Gunner | -5/Factory Scavenger-Gunner | -5/Extension Scavenger-Tank | -5/Cetus Scavenger-Tank | -5/Archives Scavenger-Tank | -5/Hub_04(d) Scavenger-Gunner | -4/Factory Scavenger-Gunner | -4/Armory Resources | -11 -10 -10 -9 -9 -9 -9 -6 -6 -6 -6 -5 -5 -5 -5 -5 -5 -4 -4 ----------- Run | Yrd Mat Min Mat Sto Rec Scr Fac Low Low Dat Pro Fac Ext Cet Arc Hub Fac Arm Matter Collected 10962 | 143 400 58 630 374 100 133 2087 567 172 244 274 563 1210 171 516 2072 524 724 Remotely 17 | . . . . . . . . . . . . 17 . . . . . . Salvage Created 19002 | . 361 436 1144 1834 216 364 3140 298 80 141 644 1194 2774 609 316 3527 1002 922 Parts 960 | . 20 34 67 110 13 19 160 12 3 13 26 63 101 25 25 173 40 56 Haulers Intercepted 18 | . 2 . 5 5 . . 4 . . . 1 . . . . 1 . . Recyclers Shooed 3 | . . . . 1 . . 1 . . . . . 1 . . . . . Parts Field Recycled . | . . . . . . . . . . . . . . . . . . . Retrieved Matter . | . . . . . . . . . . . . . . . . . . . Parts Self-Destructed 9 | . . . . . . . . 1 1 . 7 . . . . . . . Prevented 32 | . . . . . . . . 10 3 . 19 . . . . . . . Parts Restored . | . . . . . . . . . . . . . . . . . . . Kills | -11 -10 -10 -9 -9 -9 -9 -6 -6 -6 -6 -5 -5 -5 -5 -5 -5 -4 -4 ------- Run | Yrd Mat Min Mat Sto Rec Scr Fac Low Low Dat Pro Fac Ext Cet Arc Hub Fac Arm Combat Hostiles Destroyed 281 | . 7 12 21 33 4 6 41 1 1 2 10 18 41 7 . 45 12 20 Melee 1 | . . . . . . . 1 . . . . . . . . . . . Guns 151 | . 2 . 17 22 2 3 13 . 1 . . 6 40 . . 31 6 8 Cannons 29 | . 2 11 . . 1 . 9 . . . . 3 . . . 1 . 2 AOE 65 | . 3 . 3 7 1 1 17 . . . 9 7 . 1 . 5 2 9 Classes Destroyed 26 | . 6 1 2 3 . 3 7 2 1 . . . 1 . . . . . Worker 19 | . . . . 1 . . 11 . . . . 1 . . . 6 . . Builder 23 | . 1 1 1 1 . . 14 . . . . 3 . . . 2 . . Tunneler 5 | . . 2 . . . . 1 . . . . . . . . 1 1 . Hauler 18 | . 2 . 5 5 . . 4 . . . 1 . . . . 1 . . Recycler 7 | . 1 . . . . . 5 . . . . 1 . . . . . . Minesweeper 2 | . . . . . . . . 1 . . 1 . . . . . . . Mechanic 2 | . . . . . . . 2 . . . . . . . . . . . Operator 19 | . 1 . 2 1 . . 2 . . . . . . . 9 3 . 1 Watcher 14 | . . . 4 1 . . . . . . . . 2 1 . 3 . 3 Swarmer 48 | . 3 6 4 3 . . 4 . . . 5 4 5 . . 4 . 10 Saboteur 2 | . . . . . . . 1 . . . . . . . . . . 1 Grunt 90 | . 4 6 12 19 1 . 4 . . . 5 6 18 . . 9 6 . Brawler 10 | . . . . 3 . . . . . . . . 4 . . 2 1 . Duelist 6 | . . . . . . . . . . . . . 1 . . 2 . 3 Protector 6 | . . . . 1 . . 2 . . . . . . . . 3 . . Sentry 42 | . . . 5 7 3 . 5 . . . . 2 8 . . 8 3 1 Specialist 5 | . . . . . . . 2 . . . . . . . . . . 3 Hunter 11 | . . . . . . . 5 . . . . 2 1 . . 3 . . Programmer 27 | . . . . . . . 16 . . . . 3 . . . 4 2 2 Heavy 2 | . . . . . . . 1 . . . . . . . . 1 . . Behemoth 5 | . . . . . . . 1 1 . . . 1 2 . . . . . Cetus Guard 7 | . . . . . . . . . . . . . . 7 . . . . Enhanced Grunt 3 | . . . . . . . . . . 2 . . . . . 1 . . Lightning 9 | . . . . . . . . . . . . . . . . 9 . . Explorer 1 | . . . . . . 1 . . . . . . . . . . . . Guru 2 | . . . . . . 2 . . . . . . . . . . . . Scrapper 3 | . . . . . . 3 . . . . . . . . . . . . Samaritan 1 | . . . . . . . . 1 . . . . . . . . . . Savage 4 | . . . . . . . . . . . . . 4 . . . . . Butcher 1 | . . . . . . . . . . . . . 1 . . . . . Mutant 1 | . . . . . . . . . 1 . . . . . . . . . Best Kill Streak 22 | . 3 4 6 10 1 2 22 1 1 2 5 6 13 4 4 8 10 10 Combat Bots Only 14 | . 3 3 6 10 1 2 14 1 1 2 5 5 13 4 . 8 10 10 Max Kills in Single Turn 11 | . 2 2 2 4 1 1 11 1 1 1 2 4 2 1 1 3 1 5 Gunslinging 1 | . . . 1 1 . . . . . . . . 1 . . 1 . . Exploded 6 | . 2 . 2 3 1 1 6 . . . 2 4 . 1 . 2 1 5 Melee 1 | . . . . . . . 1 . . . . . . . . . . . Uniques/NPCs Destroyed 1 | . . . . . . . . . . . . . . 1 . . . . A7 (-5/Cetus) Combat | -11 -10 -10 -9 -9 -9 -9 -6 -6 -6 -6 -5 -5 -5 -5 -5 -5 -4 -4 -------- Run | Yrd Mat Min Mat Sto Rec Scr Fac Low Low Dat Pro Fac Ext Cet Arc Hub Fac Arm Hostile Shots Fired 1482 | . 15 52 71 75 2 51 256 24 4 13 8 129 88 8 3 230 53 400 Missed 397 | . 2 11 22 21 . 13 72 8 1 4 2 48 20 2 . 51 20 100 Hits 1085 | . 13 41 49 54 2 38 184 16 3 9 6 81 68 6 3 179 33 300 Melee 29 | . . . . 2 . . . . . . . . 2 . . 11 . 14 Projectile 1056 | . 13 41 49 52 2 38 184 16 3 9 6 81 66 6 3 168 33 286 AOE 3 | . . . . . . . 1 . . . . . 1 . . . . 1 Critical Strikes 72 | . . . 1 . . 1 13 . . . 1 5 2 4 . 20 1 24 Part Disruptions 4 | . . . . . . . . . 2 . . . . . . 2 . . Damage Taken 18439 | . 187 467 620 857 127 508 2815 112 89 460 105 1525 1343 91 79 3156 673 5225 Core 2229 | . 38 24 115 117 . 128 273 32 . . 17 90 115 12 . 103 61 1104 Absorbed by Shields 501 | . . . . . . 4 . . . . . 65 232 89 . . . 111 Reduced by Siege Mode 116 | . . . . . . . . . . . . . . . . 116 . . Ignored by Resistances 2092 | . . . . . . . . . . . . . . . . 2092 . . Regen/Repaired (Parts) 1350 | . 61 . 272 447 . . 379 . . . . 191 . . . . . . Core Remaining (%) 63 | 100 . 75 . . . 10 . . . . 62 . . . . 68 . . Volleys Fired 739 | . 33 34 60 47 7 22 113 40 12 6 17 49 69 8 25 122 23 52 Largest 4 | . 2 2 3 3 3 3 3 3 3 3 3 4 4 1 4 4 4 4 Hottest 291 | . 120 120 168 135 181 158 278 198 176 80 146 210 291 40 132 245 236 235 Shots Fired 1858 | . 64 68 174 135 21 60 270 46 14 9 23 94 253 8 98 347 60 114 Gun 1436 | . 28 . 171 133 18 41 146 31 14 5 4 58 246 . 98 312 47 84 Cannon 334 | . 34 68 . 2 3 19 119 . . . 5 27 7 . . 22 2 26 Launcher 86 | . 2 . 3 . . . 5 15 . 3 14 9 . 8 . 12 11 4 Special 2 | . . . . . . . . . . 1 . . . . . 1 . . Kinetic 876 | . . . 27 . . 12 116 3 2 1 4 51 203 . 98 258 35 66 Thermal 613 | . 34 68 129 2 3 19 135 13 11 . 5 34 50 . . 68 12 30 Explosive 15 | . 2 . 3 . . . 5 . . . . . . . . . 1 4 Electromagnetic 352 | . 28 . 15 133 18 29 14 30 1 7 14 9 . 8 . 20 12 14 Robot Hit Streak 43 | . 6 7 11 22 8 14 19 8 9 6 9 34 43 6 16 20 28 17 Robot Miss Streak 21 | . 5 4 4 3 2 2 21 2 4 1 1 1 3 . 2 5 1 3 Penetration Max 2 | . . . . . . . 1 . . . . 1 2 . 1 1 2 1 Secondary Targets 27 | . . . 7 6 . . . . . . . . 6 . . 4 2 2 Max Gunslinging Chain 2 | . . . 1 1 . . . . . . . . 2 . . 1 1 1 Shots Hit Robots 1224 | . 31 32 115 101 17 34 203 14 6 7 8 66 156 17 64 238 36 79 Core Hits 880 | 1 15 17 46 83 8 15 183 9 6 4 17 47 111 18 33 171 36 60 Critical Kills 21 | . . 1 . . . 1 2 . . . . . 3 . . 7 1 6 Critical Parts Destroyed 27 | . . . 1 1 . . 5 . . . . . 5 . 1 8 1 5 Critical Strikes 68 | . . 1 9 1 . 1 7 1 . . . . 10 2 1 18 2 15 Burn 10 | . . . 8 . . . . . . . . . 2 . . . . . Meltdown 3 | . . 1 . . . 1 1 . . . . . . . . . . . Destroy 40 | . . . . . . . 2 . . . . . 8 . 1 16 2 11 Corrupt 7 | . . . . . . . . 1 . . . . . . . 2 . 4 Smash 6 | . . . 1 1 . . 4 . . . . . . . . . . . Sever 2 | . . . . . . . . . . . . . . 2 . . . . Melee Attacks 87 | . . . 11 6 . . 51 . . 2 . 4 . 13 . . . . Impact 74 | . . . 11 6 . . 51 . . 2 . 4 . . . . . . Slashing 13 | . . . . . . . . . . . . . . 13 . . . . Piercing . | . . . . . . . . . . . . . . . . . . . Sneak Attacks 35 | . . . 2 3 . . 16 . . . . 1 . 13 . . . . Combat Hostiles . | . . . . . . . . . . . . . . . . . . . Follow-up Attacks . | . . . . . . . . . . . . . . . . . . . Damage Inflicted 42813 | 7 601 643 2233 2564 281 627 9048 536 344 102 986 2716 5222 1861 1799 8604 1652 2987 Guns 24090 | . 210 . 1751 1668 197 368 2391 229 344 40 81 1339 5038 . 1799 6461 920 1254 Cannons 5110 | . 243 592 . 21 39 225 2050 . . . . 541 138 . . 713 63 485 Explosions 10250 | . 127 . 344 613 32 34 2703 307 . 62 905 730 . 1069 . 1424 669 1231 Melee 3141 | . . . 138 208 . . 1897 . . . . 106 . 792 . . . . Ramming 222 | 7 21 51 . 54 13 . 7 . . . . . 46 . . 6 . 17 Kinetic 14430 | . . . 291 . . 129 1806 40 41 . 81 940 3730 . 1799 4275 550 748 Thermal 12547 | . 243 592 1289 634 71 259 2441 79 303 . . 989 1446 351 . 2850 370 630 Explosive 4383 | . 127 . 344 . . . 2681 . . . . . . . . . . 1231 Electromagnetic 8090 | . 210 . 171 1668 197 239 216 417 . 102 905 681 . 718 . 1473 732 361 Impact 2349 | . . . 138 208 . . 1897 . . . . 106 . . . . . . Slashing 792 | . . . . . . . . . . . . . . 792 . . . . Piercing . | . . . . . . . . . . . . . . . . . . . Highest Corruption 67 | . . . . . . . 7 3 3 3 31 1 2 13 13 67 1 13 Average Corruption 4 | . . . . . . . 3 3 3 3 3 1 1 8 8 11 1 3 Corruption Purged 30 | . . . . . . . 10 . . . . . . . 20 . . . Corruption Blocked . | . . . . . . . . . . . . . . . . . . . Effects 246 | . . . . . . . 61 20 20 7 16 4 18 11 23 50 4 12 Message Errors 59 | . . . . . . . 11 5 6 2 4 3 4 4 3 11 . 6 Matter Fused 57 | . . . . . . . 13 5 7 1 1 1 7 5 5 9 1 2 Heat Flow Errors 23 | . . . . . . . 5 1 . 1 1 . 1 2 3 5 2 2 Energy Discharges 39 | . . . . . . . 11 1 4 . 5 . 2 . 3 12 . 1 Parts Rejected 3 | . . . . . . . 2 . . . . . . . . . . 1 Parts Fused 3 | . . . . . . . 1 1 . . . . . . . 1 . . Data Loss (minor) 26 | . . . . . . . 7 4 . 1 4 . 3 . 1 5 1 . Data Loss (major) 8 | . . . . . . . 3 . 1 1 1 . 1 . 1 . . . Misfires 13 | . . . . . . . 5 1 1 1 . . . . 2 3 . . Alerts 3 | . . . . . . . . 2 . . . . . . 1 . . . Weapon Failures 12 | . . . . . . . 3 . 1 . . . . . 4 4 . . Overload Shots . | . . . . . . . . . . . . . . . . . . . Overflow Damage 1119 | . 20 3 47 52 . . 819 . . . 18 76 . 12 . 43 . 29 Projectiles 175 | . 10 3 . . . . 103 . . . . . . . . 30 . 29 Explosions 101 | . 10 . 12 . . . 48 . . . 18 . . . . 13 . . Melee 843 | . . . 35 52 . . 668 . . . . 76 . 12 . . . . Knockbacks 10 | . . 1 . . 1 . 5 . . . . 2 1 . . . . . Impact 7 | . . 1 . . 1 . 3 . . . . 1 1 . . . . . Kinetic . | . . . . . . . . . . . . . . . . . . . Secondary 3 | . . . . . . . 2 . . . . 1 . . . . . . Self-Inflicted Damage 381 | . 50 . . 81 43 . 99 . . . . 31 . . . 77 . . Shots 13 | . 2 . . 3 1 . 2 . . . . 2 . . . 3 . . Rammed 29 | 3 4 9 . 9 1 . 1 . . . . . . . . 1 . 1 Targets Rammed 33 | 3 5 9 . 9 1 . 1 . . . . . 1 . . 1 . 3 Kicked 3 | . . . . . . . . . . . . . 1 . . . . 2 Crushed 1 | . 1 . . . . . . . . . . . . . . . . . Highest Temperature 391 | . 174 357 292 298 171 271 288 291 284 131 298 250 258 132 246 391 183 367 Average Temperature 83 | . 43 118 86 76 70 72 75 86 110 68 87 49 81 75 72 92 68 109 Received Heat Transfer 3580 | . 63 171 189 336 39 226 303 24 20 . 18 304 264 . 9 337 193 1084 Effects 15 | . . . . . . 2 5 1 . . . . . . . 3 . 4 Energy Bleed 1 | . . . . . . . . 1 . . . . . . . . . . Interference 14 | . . . . . . 2 5 . . . . . . . . 3 . 4 Siege Activations 9 | . . . . . . . . . . . . . . . 2 7 . . Total Turns 297 | . . . . . . . . . . . . . . . 60 237 . . Longest Duration 77 | . . . . . . . . . . . . . . . 33 77 . . Martial Activations . | . . . . . . . . . . . . . . . . . . . Shielding Activations . | . . . . . . . . . . . . . . . . . . . Robots Disrupted . | . . . . . . . . . . . . . . . . . . . Combat Hostiles . | . . . . . . . . . . . . . . . . . . . Robots Corrupted 40 | . . . 1 5 . 1 5 2 . 2 2 2 . 6 . 8 4 2 Combat Hostiles 29 | . . . . 4 . 1 . 1 . 2 1 1 . 6 . 8 4 1 Parts Fried 75 | . . . 4 7 . 1 18 4 . 1 6 6 . 4 . 11 9 4 Impact Corruptions 22 | . . . 1 1 . . 17 . . . . 3 . . . . . . Robots Melted 6 | . . 1 1 . . 1 1 . . . . 1 1 . . . . . Combat Hostiles 6 | . . 1 1 . . 1 1 . . . . 1 1 . . . . . Parts Melted 40 | . . 1 8 . . 6 14 . . . . 3 3 . . 4 . 1 Heat Transferred 21915 | . 518 1258 3626 780 111 373 4141 50 675 . . 925 2801 300 . 4485 760 1112 Parts Sabotaged 1 | . . . . . . . . . . . . . . . . 1 . . Parts Stolen . | . . . . . . . . . . . . . . . . . . . Parts Stripped . | . . . . . . . . . . . . . . . . . . . Power Chain Reactions 20 | . . . . 8 1 1 1 1 . . . 3 . 3 . 2 . . Alert | -11 -10 -10 -9 -9 -9 -9 -6 -6 -6 -6 -5 -5 -5 -5 -5 -5 -4 -4 ------- Run | Yrd Mat Min Mat Sto Rec Scr Fac Low Low Dat Pro Fac Ext Cet Arc Hub Fac Arm Maximum Alert Level 5 | . . . . 3 . . 3 . . . . 1 3 2 2 5 4 3 Low Security (%) 59 | 100 100 100 100 34 100 . 65 . . . . 71 52 . 4 11 . . Level 1 14 | . . . . 4 . . 20 . . . . 28 43 . 81 8 . . Level 2 12 | . . . . 56 . . . . . . . . 1 100 14 5 . 89 Level 3 4 | . . . . 4 . . 13 . . . . . 2 . . . 24 10 Level 4 4 | . . . . . . . . . . . . . . . . 26 75 . Level 5 3 | . . . . . . . . . . . . . . . . 39 . . High Security . | . . . . . . . . . . . . . . . . 8 . . Max Security . | . . . . . . . . . . . . . . . . . . . Peak Influence 2146 | . 104 73 197 723 94 . 1066 . . . . 314 867 697 421 2146 1271 798 Initial 1100 | . . 22 26 78 81 . . . . . . 69 60 483 242 66 1100 564 Average 318 | . 13 15 106 407 25 . 210 . . . . 124 209 625 315 1303 1175 563 Influence Increases 11796 | . 278 342 683 1212 224 . 1646 40 . . 265 679 1583 294 315 3020 360 855 Destroy 0b10 Robot/C 5720 | . 140 240 420 640 80 . 780 20 . . 200 360 920 160 80 1040 240 400 Destroy 0b10 Robot/NC 610 | . 25 15 60 50 . . 205 10 . . 10 25 15 10 45 115 5 20 Destroy Leader 1080 | . 34 50 118 152 . . 216 10 . . 10 80 94 . . 212 50 54 Allied During Kill 991 | . . . . . . . . . . . . . 373 80 125 413 . . Successful Hack 363 | . 29 7 7 44 18 . 118 . . . . 3 59 . . 78 . . Select Force Hacks 180 | . 30 . . 30 120 . . . . . . . . . . . . . Disable Machine 960 | . 15 30 45 60 . . 135 . . . . 30 30 . 45 450 15 105 Anti-Garrison Action 150 | . . . . 150 . . . . . . . . . . . . . . Destroy Structure 1157 | . 5 . 18 41 6 . 147 . . . . 46 32 44 20 682 20 96 Partial Spotted 45 | . . . . . . . 30 . . . . . . . . . 15 . Lose Combat Pursuer 540 | . . . 15 45 . . 15 . . . 45 135 60 . . 30 15 180 Influence Decreases 11110 | . 221 332 565 1187 434 . 581 835 270 . 155 664 844 551 731 1065 1401 1274 Entered New Map 3421 | . . 35 41 107 129 . . 395 52 . . 41 65 381 365 125 1095 590 Time Decay 5799 | . 211 287 514 630 305 . 451 440 218 . 155 433 589 150 326 510 286 294 Lost Part 610 | . . 10 10 . . . 60 . . . . 40 10 . . 70 20 390 Lost Ally 310 | . 10 . . . . . . . . . . . 180 20 40 60 . . Purge Threat 970 | . . . . 450 . . 70 . . . . 150 . . . 300 . . Squads Dispatched 50 | . 2 . 3 6 . . 15 . . . . 5 2 . . 13 2 2 Investigation 12 | . 1 . 2 2 . . 4 . . . . 2 1 . . . . . Extermination 13 | . . . . . . . 6 . . . . 3 . . . 2 1 1 Reinforcement 14 | . 1 . 1 1 . . 5 . . . . . . . . 5 . 1 Assault 11 | . . . . 3 . . . . . . . . 1 . . 6 1 . Garrison . | . . . . . . . . . . . . . . . . . . . Intercept . | . . . . . . . . . . . . . . . . . . . Searches Triggered . | . . . . . . . . . . . . . . . . . . . Unchained Authorized 1 | . . . . . . . . . . . . . . . . . . 1 Construction Impeded . | . . . . . . . . . . . . . . . . . . . Haulers Reinforced 3 | . . . . . . . 1 . . . . . . . . 2 . . Active Scanning Responses . | . . . . . . . . . . . . . . . . . . . Cargo Convoy Interrupts 1 | . . . . . . . 1 . . . . . . . . . . . Stealth | -11 -10 -10 -9 -9 -9 -9 -6 -6 -6 -6 -5 -5 -5 -5 -5 -5 -4 -4 --------- Run | Yrd Mat Min Mat Sto Rec Scr Fac Low Low Dat Pro Fac Ext Cet Arc Hub Fac Arm Distress Signals 16 | . 1 . 2 5 . . 2 . . . . . . 1 . 1 . 4 Communications Jammed 40 | . . . . . . . 8 . . . . . . . . 22 . 10 Distress Signals 40 | . . . . . . . 8 . . . . . . . . 22 . 10 Times Spotted 434 | . 18 12 38 48 4 22 55 1 1 4 11 28 52 9 8 64 18 41 Peak Tracking Total 15 | . 4 3 5 12 1 8 7 1 1 4 5 6 6 5 2 7 10 15 Tactical Retreats 24 | . . . 1 3 . 2 1 . . . 1 4 4 . . 2 1 5 Traps | -11 -10 -10 -9 -9 -9 -9 -6 -6 -6 -6 -5 -5 -5 -5 -5 -5 -4 -4 ------- Run | Yrd Mat Min Mat Sto Rec Scr Fac Low Low Dat Pro Fac Ext Cet Arc Hub Fac Arm Traps Triggered 16 | . . . 2 2 . . 2 . 1 . . 3 2 . . 1 2 1 Indirectly 2 | . . . . . . . . . . . . . . . . . 2 . Trap Hack Attempts 60 | . . . 60 . . . . . . . . . . . . . . . Triggered . | . . . . . . . . . . . . . . . . . . . Disarmed 1 | . . . 1 . . . . . . . . . . . . . . . Reprogrammed 4 | . . . 4 . . . . . . . . . . . . . . . Reused 2 | . . . . . . . . . . 2 . . . . . . . . Traps Extracted 7 | . . . 4 . . . . 2 1 . . . . . . . . . Installed 2 | . . . . . . . . . . 2 . . . . . . . . Triggered . | . . . . . . . . . . . . . . . . . . . Most Traps Carried 6 | . . . 4 4 4 4 4 5 6 6 5 5 . . . . . . Machines | -11 -10 -10 -9 -9 -9 -9 -6 -6 -6 -6 -5 -5 -5 -5 -5 -5 -4 -4 ---------- Run | Yrd Mat Min Mat Sto Rec Scr Fac Low Low Dat Pro Fac Ext Cet Arc Hub Fac Arm Machines Disabled 74 | . 1 2 3 5 . 2 9 . . . . 2 5 . 3 30 5 7 Max in Single Turn 10 | . 1 1 1 1 . 1 4 . . . . 1 2 . 1 10 2 2 Garrison Access 5 | . . . . 1 . . 3 . . . . 1 . . . . . . Network Hub 3 | . . . . . . . . . . . . . . . . 3 . . Machines Repaired . | . . . . . . . . . . . . . . . . . . . Machines Dismantled 2 | . . . . . . . . . . . . . 1 . . 1 . . Machines Sabotaged . | . . . . . . . . . . . . . . . . . . . Overloaded Fab Kills . | . . . . . . . . . . . . . . . . . . . Hacking | -11 -10 -10 -9 -9 -9 -9 -6 -6 -6 -6 -5 -5 -5 -5 -5 -5 -4 -4 --------- Run | Yrd Mat Min Mat Sto Rec Scr Fac Low Low Dat Pro Fac Ext Cet Arc Hub Fac Arm Machines Accessed 120 | . 10 2 6 18 10 9 30 . 1 4 . 8 14 . . 6 . 2 Terminals 71 | . 7 1 4 13 6 . 16 . . . . 3 14 . . 6 . 1 Fabricators 8 | . . . . . . . 4 . . . . 3 . . . . . 1 Repair Stations 7 | . 1 . 1 2 . . 2 . . . . 1 . . . . . . Recycling Units 10 | . 2 . . 2 4 . 2 . . . . . . . . . . . Scanalyzers 4 | . . . 1 . . . 3 . . . . . . . . . . . Garrison Access 5 | . . . . 1 . . 3 . . . . 1 . . . . . . Total Hacks 417 | . 34 4 23 54 32 61 85 . 1 29 . 21 28 . . 35 . 10 Successful 287 | . 22 2 14 36 21 61 53 . 1 29 . 15 15 . . 15 . 3 Failed 130 | . 12 2 9 18 11 . 32 . . . . 6 13 . . 20 . 7 Catastrophic 14 | . . 1 . 2 2 . 2 . . . . 1 . . . 3 . 3 Database Lockouts . | . . . . . . . . . . . . . . . . . . . Manual 175 | . 17 3 8 23 25 . 46 . . . . 6 14 1 . 26 . 6 Terminals 215 | . 22 3 10 36 20 . 52 . . . . 5 28 . . 35 . 4 Fabricators 23 | . . . . . . . 9 . . . . 8 . . . . . 6 Repair Stations 37 | . 6 . 9 11 . . 5 . . . . 6 . . . . . . Recycling Units 27 | . 6 . . 5 12 . 4 . . . . . . . . . . . Scanalyzers 14 | . . . 4 . . . 10 . . . . . . . . . . . Garrison Access 9 | . . . . 2 . . 5 . . . . 2 . . . . . . Terminal Hacks 141 | . 3 2 . 11 4 61 15 . 1 29 . 2 7 . . 6 . . Record 63 | . . . . . . 52 . . . 11 . . . . . . . . Part Schematic 16 | . . . . . 3 . 3 . . 10 . . . . . . . . Robot Schematic 6 | . . 1 . . . . . . . 5 . . . . . . . . Robot Analysis 9 | . 1 . . . . 8 . . . . . . . . . . . . Prototype ID Bank 3 | . . . . . . . . . . 3 . . . . . . . . Open Door 12 | . . 1 . 4 . . . . 1 . . . 6 . . . . . Branch Access Points 1 | . . . . . . . 1 . . . . . . . . . . . Terminal Index 5 | . 1 . . 1 1 . 1 . . . . . . . . 1 . . Scanalyzer Index 1 | . . . . . . . 1 . . . . . . . . . . . Alert Level 5 | . . . . 1 . . 2 . . . . . 1 . . 1 . . Unreport Threat 7 | . . . . 3 . . 1 . . . . 1 . . . 2 . . Locate Traps 3 | . 1 . . 1 . . 1 . . . . . . . . . . . Patrol Status 1 | . . . . . . . 1 . . . . . . . . . . . Transport Status 1 | . . . . . . . . . . . . 1 . . . . . . Hauler Manifests 2 | . . . . . . . 2 . . . . . . . . . . . Registered Prototypes 1 | . . . . . . . 1 . . . . . . . . . . . Zone Layout 4 | . . . . 1 . . 1 . . . . . . . . 2 . . Proto ID Catalog 1 | . . . . . . 1 . . . . . . . . . . . . Fabricator Hacks 11 | . . . . . . . 4 . . . . 4 . . . . . 3 Network Status 4 | . . . . . . . 2 . . . . 1 . . . . . 1 Load Schematic 4 | . . . . . . . 1 . . . . 2 . . . . . 1 Build 3 | . . . . . . . 1 . . . . 1 . . . . . 1 Repair Station Hacks 31 | . 6 . 7 10 . . 4 . . . . 4 . . . . . . Scan Component 16 | . 3 . 4 5 . . 2 . . . . 2 . . . . . . Repair 15 | . 3 . 3 5 . . 2 . . . . 2 . . . . . . Recycling Unit Hacks 10 | . 2 . . 3 4 . 1 . . . . . . . . . . . Retrieve Components 10 | . 2 . . 3 4 . 1 . . . . . . . . . . . Scanalyzer 10 | . . . 4 . . . 6 . . . . . . . . . . . Retrieve Study 10 | . . . 4 . . . 6 . . . . . . . . . . . Garrison Access Hacks 4 | . . . . . . . 3 . . . . 1 . . . . . . Seal Access 4 | . . . . . . . 3 . . . . 1 . . . . . . Unauthorized Hacks 80 | . 11 . 3 12 13 . 20 . . . . 4 8 . . 9 . . Terminals 63 | . 10 . 3 10 7 . 16 . . . . . 8 . . 9 . . Track 7 | . . . . 1 . . 4 . . . . . . . . 2 . . Assimilate 5 | . 1 . . . . . 3 . . . . . . . . 1 . . Botnet 16 | . 3 . 1 3 2 . 3 . . . . . 1 . . 3 . . Operators 6 | . 1 . 1 1 . . 1 . . . . . 1 . . 1 . . Skim 29 | . 5 . 1 5 5 . 5 . . . . . 6 . . 2 . . Fabricators 5 | . . . . . . . 2 . . . . 3 . . . . . . Report 2 | . . . . . . . 1 . . . . 1 . . . . . . Prioritize 1 | . . . . . . . 1 . . . . . . . . . . . Haulers 1 | . . . . . . . . . . . . 1 . . . . . . Recompile 1 | . . . . . . . . . . . . 1 . . . . . . Repair Stations 3 | . . . . 1 . . 1 . . . . 1 . . . . . . Mechanics 1 | . . . . 1 . . . . . . . . . . . . . . Patch 2 | . . . . . . . 1 . . . . 1 . . . . . . Recycling Units 9 | . 1 . . 1 6 . 1 . . . . . . . . . . . Reject 2 | . . . . . 2 . . . . . . . . . . . . . Mask 1 | . . . . . . . 1 . . . . . . . . . . . Tunnel 6 | . 1 . . 1 4 . . . . . . . . . . . . . Scanalyzers . | . . . . . . . . . . . . . . . . . . . Garrison Access . | . . . . . . . . . . . . . . . . . . . Data Cores Recovered 2 | . 1 . . . . . . . . . . . . . . . . 1 Used 2 | . 1 . . . . . . . . . . . . . . . . 1 Hacking Detections 89 | . 9 1 6 13 8 . 26 . . . . 7 12 . . 5 . 2 Full Trace Events 6 | . . . 1 1 1 . 3 . . . . . . . . . . . Feedback Events . | . . . . . . . . . . . . . . . . . . . Feedback Blocked . | . . . . . . . . . . . . . . . . . . . Robot Schematics Acquired 6 | . . 1 . . . . . . . 5 . . . . . . . . Robots Built . | . . . . . . . . . . . . . . . . . . . Authchips . | . . . . . . . . . . . . . . . . . . . Time . | . . . . . . . . . . . . . . . . . . . Total Robot Build Rating . | . . . . . . . . . . . . . . . . . . . Part Schematics Acquired 16 | . . . . . 3 . 3 . . 10 . . . . . . . . Parts Built 5 | . . . . . . . 2 . . . . 1 . . . . . 2 Authchips 2 | . . . . . . . . . . . . 1 . . . . . 1 Time 141 | . . . . . . . 15 . . . . 84 . . . . . 42 Total Part Build Rating 18 | . . . . . . . 4 . . . . 6 . . . . . 8 Part Studies Acquired 10 | . . . 4 . . . 6 . . . . . . . . . . . Parts Repaired 15 | . 3 . 3 5 . . 2 . . . . 2 . . . . . . Time 647 | . 78 . 129 248 . . 70 . . . . 122 . . . . . . Parts Recycled . | . . . . . . . . . . . . . . . . . . . Recycled Matter . | . . . . . . . . . . . . . . . . . . . Retrieved Matter . | . . . . . . . . . . . . . . . . . . . Retrieved Components 59 | . 19 . . 22 10 . 8 . . . . . . . . . . . Parts Scanalyzed . | . . . . . . . . . . . . . . . . . . . Part Schematics Acquired . | . . . . . . . . . . . . . . . . . . . Parts Damaged . | . . . . . . . . . . . . . . . . . . . Bothacking | -11 -10 -10 -9 -9 -9 -9 -6 -6 -6 -6 -5 -5 -5 -5 -5 -5 -4 -4 ------------ Run | Yrd Mat Min Mat Sto Rec Scr Fac Low Low Dat Pro Fac Ext Cet Arc Hub Fac Arm Used RIF Installer . | . . . . . . . . . . . . . . . . . . . Robots Hacked . | . . . . . . . . . . . . . . . . . . . Non-combat . | . . . . . . . . . . . . . . . . . . . Combat . | . . . . . . . . . . . . . . . . . . . Robot Hacks Applied . | . . . . . . . . . . . . . . . . . . . Relay Couplers Released 2 | . . . . 2 . . . . . . . . . . . . . . Machine Destruction 2 | . . . . 2 . . . . . . . . . . . . . . Fabnet Peak Effective % . | . . . . . . . . . . . . . . . . . . . Robots Rewired 12 | . . . . . 5 . . . . . . . 7 . . . . . Allies Hacked . | . . . . . . . . . . . . . . . . . . . Hacks Repelled . | . . . . . . . . . . . . . . . . . . . Allies | -11 -10 -10 -9 -9 -9 -9 -6 -6 -6 -6 -5 -5 -5 -5 -5 -5 -4 -4 -------- Run | Yrd Mat Min Mat Sto Rec Scr Fac Low Low Dat Pro Fac Ext Cet Arc Hub Fac Arm Total Allies 27 | . 1 . . . 5 . . . . . . . 16 5 . . . . Largest Group 10 | . 1 . . . 5 5 . . . . . . 10 8 7 5 . . Highest-Rated Group 679 | . 10 . . . 113 113 . . . . . . 404 679 515 468 . . Highest-Rated Ally 159 | . 10 . . . 34 34 . . . . . . 159 159 96 96 . . Total Orders 19 | . . . . . . 14 . 2 . . . . . . 2 1 . . STAY 8 | . . . . . . 6 . . . . . . . . 1 1 . . ROAM 1 | . . . . . . 1 . . . . . . . . . . . . FOLLOW 3 | . . . . . . 2 . . . . . . . . 1 . . . AID 2 | . . . . . . 2 . . . . . . . . . . . . EXPLORE 3 | . . . . . . 2 . 1 . . . . . . . . . . RETURN 2 | . . . . . . 1 . 1 . . . . . . . . . . Ally Attacks 143 | . . . . . . 8 . . . . . . 41 8 21 65 . . Total Damage 5349 | . . . . . . 321 . . . . . . 1109 291 744 2884 . . Kills 30 | . . . . . . 2 . . . . . . 7 2 4 15 . . Allies Corrupted 2 | . . . . . . . . . . . . . . . . 2 . . Allies Melted 3 | . . . . . . 3 . . . . . . . . . . . . Intel | -11 -10 -10 -9 -9 -9 -9 -6 -6 -6 -6 -5 -5 -5 -5 -5 -5 -4 -4 ------- Run | Yrd Mat Min Mat Sto Rec Scr Fac Low Low Dat Pro Fac Ext Cet Arc Hub Fac Arm Active Infowar (turns) 13629 | . . 19 207 34 . . 3790 1082 913 337 613 1248 1844 315 735 1289 628 575 Optics 11953 | . . . . . . . 3473 1082 913 337 613 1248 1844 315 718 1239 . 171 IFF 3383 | . . . . . . . 52 1035 913 118 603 662 . . . . . . Terrain 2 | . . . . . . . . . . . 2 . . . . . . . Structural 5250 | . . . 192 . . . 1311 1071 906 79 . 492 158 . . 645 171 225 Traps 50 | . . . . . . . 50 . . . . . . . . . . . Seismic 3663 | . . 19 15 34 . . 2730 . . . . . . . . 151 628 86 T.N.C. 2210 | . . . . . . . 2210 . . . . . . . . . . . Machine Analysis 264 | . . . . . . . . . . . . 264 . . . . . . Cloaking 217 | . . . . . . . . . . . . . . . . . . 217 Jamming 3045 | . . . . . . . 803 2 . 70 572 147 . 19 560 431 . 441 Robot Analysis Total 9 | . 1 . . . . 8 . . . . . . . . . . . . Derelict Logs Recovered 5 | . . 3 . . . . . 1 1 . . . . . . . . . Drone Launches 6 | . . . . . . 5 . 1 . . . . . . . . . . Drone Recoveries 5 | . . . . . . 4 . 1 . . . . . . . . . . Exploration | -11 -10 -10 -9 -9 -9 -9 -6 -6 -6 -6 -5 -5 -5 -5 -5 -5 -4 -4 ------------- Run | Yrd Mat Min Mat Sto Rec Scr Fac Low Low Dat Pro Fac Ext Cet Arc Hub Fac Arm Turns Passed 24459 | 57 1620 1081 2055 2183 1132 2635 3821 1082 913 337 613 1248 1844 315 735 1503 633 652 Spaces Moved 14082 | 29 869 585 928 964 857 2269 2238 758 814 221 371 724 787 171 283 580 288 346 Core 7 | 7 . . . . . . . . . . . . . . . . . . Treads 4190 | 22 869 585 928 868 . . . . . . . . . 75 283 560 . . Legs 2270 | . . . . . . . . . . . 15 724 787 96 . 20 288 340 Wheels 7609 | . . . . 96 857 2269 2238 758 814 221 356 . . . . . . . Hover . | . . . . . . . . . . . . . . . . . . . Flight . | . . . . . . . . . . . . . . . . . . . Fastest Speed 50 | 50 160 160 157 125 95 110 105 105 105 105 120 120 120 120 160 100 100 96 Average Speed 127 | 147 160 160 162 154 115 110 118 105 105 114 134 120 120 138 160 159 100 109 Slowest Speed 330 | 160 160 160 250 330 125 155 185 105 105 135 135 120 120 240 240 240 100 265 Overloaded Moves . | . . . . . . . . . . . . . . . . . . . Propulsion Burnouts . | . . . . . . . . . . . . . . . . . . . Robots Hopped . | . . . . . . . . . . . . . . . . . . . Potential Cave-ins . | . . . . . . . . . . . . . . . . . . . Cave-ins Triggered . | . . . . . . . . . . . . . . . . . . . Teleports 6 | . . . . . . . . . . . . . . . . . . 6 Exploration Rate (%) 69 | 3 95 98 74 89 97 91 59 90 95 78 62 23 86 60 97 79 9 32 Regions Visited 18 Branch Regions 13 Pre-discovered Areas 27 | . 2 2 . 4 5 7 6 . . 1 . . . . . . . . Known Exits Taken 10 | . . 1 . 1 1 1 1 1 . . 1 1 . . . 1 1 . Unknown Exits Taken 8 | 1 1 . 1 . . . . . 1 1 . . 1 1 1 . . . Scrap Searched 14 | . . 2 . . . 3 . 4 5 . . . . . . . . . Spaces Dug 86 | . . . 6 1 . . 30 3 3 1 3 11 . . . 2 10 16 Terrain Destroyed 625 | . 5 . 17 43 6 3 185 12 6 1 5 24 11 24 10 200 12 61 Melee 39 | . . . 6 1 . . 28 . . 1 . 3 . . . . . . Projectile 91 | . . . . . . . 6 . . . 5 13 9 . 10 46 2 . AOE 464 | . 5 . 11 42 6 3 144 4 . . . 7 . 24 . 147 10 61 Terrain Rammed . | . . . . . . . . . . . . . . . . . . . Walls Destroyed . | . . . . . . . . . . . . . . . . . . . Machines Disabled . | . . . . . . . . . . . . . . . . . . . Actions | -11 -10 -10 -9 -9 -9 -9 -6 -6 -6 -6 -5 -5 -5 -5 -5 -5 -4 -4 --------- Run | Yrd Mat Min Mat Sto Rec Scr Fac Low Low Dat Pro Fac Ext Cet Arc Hub Fac Arm Total 18784 | 39 1031 657 1319 1532 978 2357 3036 996 857 298 457 1003 1507 221 502 886 587 521 Wait 2664 | . 94 15 165 442 59 41 406 178 25 6 42 140 530 3 174 70 247 27 Move 14064 | 28 868 584 927 963 856 2268 2237 757 813 220 370 723 786 170 282 579 287 346 Hop . | . . . . . . . . . . . . . . . . . . . Pick Up 173 | 2 17 4 17 6 2 10 34 3 1 13 5 10 2 6 5 14 5 17 Fast Attach 133 | 6 5 . 13 12 2 . 22 2 . 10 2 9 3 3 6 14 6 18 Attach 101 | . 2 1 6 . 1 2 24 . . 6 4 6 1 3 . 16 3 26 Detach 49 | . . . 1 . 2 1 15 1 . 6 1 4 . 1 . 10 2 5 Swap 321 | . 2 5 30 27 7 7 102 10 5 6 10 26 20 3 2 39 7 13 Drop 204 | . 5 5 29 18 3 6 31 5 1 20 6 10 9 11 8 16 7 14 Fire 739 | . 33 34 60 47 7 22 113 40 12 6 17 49 69 8 25 122 23 52 Melee 87 | . . . 11 6 . . 51 . . 2 . 4 . 13 . . . . Ram 2 | . . . . . 1 . . . . . . . . . . . . 1 Kick 3 | . . . . . . . . . . . . . 1 . . . . 2 Crush 28 | 3 5 9 . 9 . . 1 . . . . . . . . 1 . . Escape Stasis 10 | . . . . 2 . . . . . . . 8 . . . . . . Rewire 130 | . . . . . 38 . . . . . . 14 78 . . . . . Trap 63 | . . . 60 . . . . . . 3 . . . . . . . . Miscellaneous 13 | . . . . . . . . . . . . . 8 . . 5 . . Route ------- -11/Scrapyard -10/Materials (discovered 6 exits: *Mat x3 / *Min x2 / Sub) -10/Mines (discovered 4 exits: *Mat x2 / [*Exi] / *Sub) -9/Materials (discovered 5 exits: *Mat x2 / *Min x2 / *Sto) -9/Storage (discovered 2 exits: *Mat / *Rec) -9/Recycling (discovered 2 exits: *Fac / *Scr) -9/Scraptown (discovered 2 exits: *Fac x2) -6/Factory (discovered 6 exits: *Fac x4 / *Low x2) -6/Lower Caves -6/Lower Caves (discovered 2 exits: *Fac / *Dat) -6/Data Miner -5/Proximity Caves -5/Factory (discovered 4 exits: Fac x2 / Upp / *Ext) -5/Extension (discovered 3 exits: *Fac x2 / *Cet) -5/Cetus (discovered 2 exits: *Fac / [*Arc]) -5/Archives (discovered 3 exits: *Fac / *Hub x2) -5/Hub_04(d) (discovered 4 exits: *Fac x4) -4/Factory -4/Armory History --------- Turn | Location | Event 18 | -11/Scrapyard | Discovered new exit (range 15) 58 | -11/Scrapyard | Entered Materials 59 | -10/Materials | Met a group of wandering Federalists 68 | -10/Materials | Discovered new exit (range 11) 321 | -10/Materials | Build established: Mutant 351 | -10/Materials | Discovered new exit (range 13) 482 | -10/Materials | Discovered new exit (range 16) 756 | -10/Materials | Discovered new exit (range 14) 840 | -10/Materials | Identified exit to Materials 840 | -10/Materials | Identified exit to Subcaves 907 | -10/Materials | Learned location of Recycling (-9) 927 | -10/Materials | Learned 2 Mines zone layouts 1411 | -10/Materials | Repaired Ion Engine 1438 | -10/Materials | Repaired Heat Sink 1466 | -10/Materials | Repaired Lgt. Treads 1678 | -10/Materials | Entered Mines 1747 | -10/Mines | Met a Derelict who couldn't figure out how to use a Trap Extractor 1898 | -10/Mines | Learned location of Storage (-9) 1972 | -10/Mines | Deemed a non-threat by the Exiles lab entrance 1974 | -10/Mines | Discovered new exit (range 5) 2421 | -10/Mines | Learned Materials security intel 2463 | -10/Mines | Discovered exit to Materials (range 7) 2730 | -10/Mines | Discovered exit to Materials (range 5) 2759 | -10/Mines | Entered Materials 2759 | -9/Materials | Evolved 2 slots: Utility x1, Weapon x1 2760 | -9/Materials | Identified exit to Mines 3142 | -9/Materials | Discovered new exit (range 16) 3452 | -9/Materials | Discovered new exit (range 16) 3902 | -9/Materials | Build established: Tank 3986 | -9/Materials | Discovered new exit (range 16) 4364 | -9/Materials | Identified exit to Materials 4460 | -9/Materials | Build established: Mutant 4691 | -9/Materials | Repaired Imp. Light Armor Plating 4730 | -9/Materials | Repaired Arm. Treads 4785 | -9/Materials | Repaired Broken Imp. Grenade Launcher 4814 | -9/Materials | Entered Storage 5329 | -9/Storage | Core integrity fell below 50% 5349 | -9/Storage | Build established: Tank 5371 | -9/Storage | Destroyed 10 combat bots 5562 | -9/Storage | Met 01-MTF 5614 | -9/Storage | First assault squad dispatched 6112 | -9/Storage | Discovered exit to Materials (range 16) 6148 | -9/Storage | Repaired Adv. Treads? 6193 | -9/Storage | Repaired Imp. Ion Engine+ 6361 | -9/Storage | Repaired Cooling System 6470 | -9/Storage | Repaired Centrium Light Armor Plating 6509 | -9/Storage | Repaired Arm. Treads 6755 | -9/Storage | Identified exit to Recycling 6785 | -9/Storage | Learned Materials recycling unit intel 6814 | -9/Storage | Learned 4 Recycling zone layouts 6818 | -9/Storage | Loaded intel: 25 non-interactive machine locations 6826 | -9/Storage | Learned location of 1 exit from Recycling 6845 | -9/Storage | Learned location of Mines (-9) 6997 | -9/Storage | Entered Recycling 6997 | -9/Recycling | Accompanied by 1 ally (01-MTF) 6998 | -9/Recycling | Identified exit to Factory 7053 | -9/Recycling | Scanned before Scraplab entrance 7088 | -9/Recycling | Found Prototype Energy Gun 7088 | -9/Recycling | Identified KN-7UR's Autopenetrator 7608 | -9/Recycling | Learned location of 1 exit from Storage 7724 | -9/Recycling | Learned Storage stockpile data 7763 | -9/Recycling | Entered Scraplab 7768 | -9/Recycling | Learned 2 Storage zone layouts 7822 | -9/Recycling | Learned location of 1 exit from Recycling 7835 | -9/Recycling | Loaded intel: 4 recycling unit locations 7889 | -9/Recycling | Learned Materials non-interactive machine intel 7930 | -9/Recycling | Identified exit to Scraptown 8129 | -9/Recycling | Entered Scraptown 8129 | -9/Scraptown | Accompanied by 5 allies 8186 | -9/Scraptown | Build established: Commander-Tank 8327 | -9/Scraptown | Discovered new exit (range 13) 8366 | -9/Scraptown | Visited Cyclists 8436 | -9/Scraptown | Visited Artisan Demo Area 8509 | -9/Scraptown | Visited Fellowship of the Rings 8568 | -9/Scraptown | Visited TADAMA 8606 | -9/Scraptown | Visited Comm Corps 8815 | -9/Scraptown | Visited UFD Registry 8815 | -9/Scraptown | Registered with UFD as "Bioroller" 8850 | -9/Scraptown | Visited Cartography Club 9011 | -9/Scraptown | Visited Analyses Database 9082 | -9/Scraptown | Visited Science Guys 9111 | -9/Scraptown | Visited Scrap Suit Storage 9131 | -9/Scraptown | Visited Derelict Rescue Squad 9147 | -9/Scraptown | Visited Chapter 10 9271 | -9/Scraptown | Visited Botcube Research 9286 | -9/Scraptown | Visited LU-1G1's Boring Crew 9323 | -9/Scraptown | Visited Junk Repository 9433 | -9/Scraptown | Learned location of Lower Caves (-6) 9433 | -9/Scraptown | Learned location of Testing (-2) 9433 | -9/Scraptown | Learned 16 Factory zone layouts 9433 | -9/Scraptown | Learned 12 Research zone layouts 9433 | -9/Scraptown | Learned 8 Access zone layouts 9433 | -9/Scraptown | Learned 4 Recycling zone layouts 9433 | -9/Scraptown | Learned 20 Lower Caves zone layouts 9433 | -9/Scraptown | Learned 8 Upper Caves zone layouts 9433 | -9/Scraptown | Learned 12 Upper Caves zone layouts 9433 | -9/Scraptown | Learned 8 Proximity Caves zone layouts 9433 | -9/Scraptown | Learned 16 Proximity Caves zone layouts 9433 | -9/Scraptown | Learned Factory emergency access door positions 9433 | -9/Scraptown | Learned location of 1 exit from Factory 9433 | -9/Scraptown | Learned location of 1 exit from Upper Caves 9433 | -9/Scraptown | Learned location of 2 exits from Proximity Caves 9433 | -9/Scraptown | Identified exit to Factory 9488 | -9/Scraptown | Found Deep Structural Scanner 9561 | -9/Scraptown | Visited IN-MT5's Study 9577 | -9/Scraptown | Visited Science Testing Area 9610 | -9/Scraptown | Entered Cyclist Reading Room 9617 | -9/Scraptown | Learned location of Zion (-7) 10426 | -9/Scraptown | Met Optimus 10426 | -9/Scraptown | Accepted into 0bPrime 10535 | -9/Scraptown | Civil war broke out across Scraptown 10555 | -9/Scraptown | Found PL-3XN's Ring of Power 10601 | -9/Scraptown | Core integrity fell below 20% 10656 | -9/Scraptown | Optimus destroyed in the chaos of civil war 10670 | -9/Scraptown | Lost 15 allies 10695 | -9/Scraptown | Found Personal Teleporter v0.10 10764 | -9/Scraptown | Entered Factory 10764 | -6/Factory | Evolved 6 slots: Power x1, Propulsion x2, Utility x3 10765 | -6/Factory | Identified exit to Factory 10765 | -6/Factory | Identified exit to Lower Caves 10781 | -6/Factory | Lost 9 allies 10843 | -6/Factory | Repaired Centrium Light Armor Plating 11063 | -6/Factory | Build established: Hacker-Mutant 11443 | -6/Factory | Learned location of 3 exits from Factory 11515 | -6/Factory | Learned location of Warlord (-4) 11670 | -6/Factory | Learned Hub_04(d) stockpile data 11716 | -6/Factory | Found Prototype Launcher 11716 | -6/Factory | Identified Scatter Rocket Array 11719 | -6/Factory | Found Scatter Rocket Array 11925 | -6/Factory | Fabricated Plasma Cutter (x2) 12000 | -6/Factory | Spotted B-75 Beast 12404 | -6/Factory | Build established: Scavenger-Mutant 12821 | -6/Factory | Build established: Scavenger-Skirmisher 13545 | -6/Factory | Repaired Arm. Wheel+ 13819 | -6/Factory | Build established: Scavenger-Mutant 13835 | -6/Factory | Destroyed B-75 Beast 14053 | -6/Factory | Cargo convoy interrupted 14082 | -6/Factory | Destroyed 14 combat bots 14092 | -6/Factory | Lost 3 parts (3n) 14095 | -6/Factory | Found PL-3XN's Ring of Power 14127 | -6/Factory | Found Prototype Processor 14127 | -6/Factory | Identified Spectral Analyzer 14585 | -6/Factory | Entered Lower Caves 14586 | -6/Lower Caves | Identified exit to Lower Caves 14589 | -6/Lower Caves | Encountered a Warlord checkpoint 14796 | -6/Lower Caves | Learned 4 Factory zone layouts 14926 | -6/Lower Caves | Spotted B-75 Beast 14967 | -6/Lower Caves | Destroyed B-75 Beast 14968 | -6/Lower Caves | Build established: Skirmisher 15667 | -6/Lower Caves | Entered another Lower Caves area 15725 | -6/Lower Caves | Discovered exit to Factory (range 21) 15817 | -6/Lower Caves | Learned location of 1 exit from Factory 15976 | -6/Lower Caves | Encountered a Warlord checkpoint 16111 | -6/Lower Caves | Attacked by a delusional Derelict stockpiling parts 16469 | -6/Lower Caves | Discovered new exit (range 17) 16580 | -6/Lower Caves | Entered Data Miner 16583 | -6/Data Miner | Discovered new exit (range 6) 16595 | -6/Data Miner | Met Data Miner 16633 | -6/Data Miner | Learned location of Section 7 (-2) 16633 | -6/Data Miner | Acquired the access code to Warlord's prototype stash 16644 | -6/Data Miner | Received God Mode back door access code from Data Miner 16726 | -6/Data Miner | Data Conduit disabled 16740 | -6/Data Miner | Attached CPS modules to Enhanced Grunt. 16776 | -6/Data Miner | Found Prototype Device 16776 | -6/Data Miner | Identified Exp. Thermal Shield 16917 | -6/Data Miner | Entered Proximity Caves 17228 | -5/Proximity Caves | Build established: Scavenger-Skirmisher 17506 | -5/Proximity Caves | System corruption reached 10% 17529 | -5/Proximity Caves | System corruption reached 30% 17530 | -5/Proximity Caves | Entered Factory 17530 | -5/Factory | Evolved 2 slots: Utility x1, Weapon x1 17531 | -5/Factory | Identified exit to Extension 17531 | -5/Factory | Identified exit to Factory 17531 | -5/Factory | Identified exit to Upper Caves 18142 | -5/Factory | Build established: Scavenger-Gunner 18261 | -5/Factory | Spotted B-75 Beast 18317 | -5/Factory | Destroyed B-75 Beast 18347 | -5/Factory | Lost 3 parts (2u1w) 18487 | -5/Factory | Fabricated Tiamat Missile Launcher (x1) 18628 | -5/Factory | Repaired Corrupted Gauss Rifle+ 18699 | -5/Factory | Repaired Corrupted Gauss Rifle+ 18778 | -5/Factory | Entered Extension 19123 | -5/Extension | Rescued a captive Derelict 19252 | -5/Extension | Rescued a captive Derelict 19309 | -5/Extension | Rescued a captive Derelict 19310 | -5/Extension | Rescued a captive Derelict 19466 | -5/Extension | Spotted B-75 Beast 19487 | -5/Extension | Destroyed B-75 Beast 19492 | -5/Extension | Spotted B-75 Beast 19509 | -5/Extension | Destroyed B-75 Beast 19546 | -5/Extension | Lost 4 allies 19547 | -5/Extension | Discovered exit to Factory (range 7) 19732 | -5/Extension | Rescued a captive Derelict 19742 | -5/Extension | Rescued A7 19778 | -5/Extension | Disrupted transfer network 19842 | -5/Extension | Rescued a captive Derelict 19844 | -5/Extension | Rescued a captive Derelict 19953 | -5/Extension | Rescued a captive Derelict 20217 | -5/Extension | Learned location of 1 exit from Research 20271 | -5/Extension | Learned Armory non-interactive machine intel 20313 | -5/Extension | Learned 4 Research zone layouts 20343 | -5/Extension | Learned location of 1 exit from Quarantine 20375 | -5/Extension | Learned 4 Quarantine zone layouts 20394 | -5/Extension | Learned location of 2 exits from Research 20422 | -5/Extension | Learned 4 Testing zone layouts 20509 | -5/Extension | Learned location of 2 exits from Proximity Caves 20532 | -5/Extension | Discovered exit to Factory (range 10) 20545 | -5/Extension | Disrupted transfer network 20578 | -5/Extension | First assault squad dispatched 20586 | -5/Extension | Discovered new exit (range 8) 20622 | -5/Extension | Entered Cetus 20622 | -5/Cetus | Accompanied by 4 allies (A7) 20627 | -5/Cetus | Acquired a Cetus Manufacturing Module code from A7 20630 | -5/Cetus | Destroyed 13 combat bots 20637 | -5/Cetus | Spotted Cetus Guard 20637 | -5/Cetus | Spotted Cetus Guard 20637 | -5/Cetus | Spotted Cetus Guard 20637 | -5/Cetus | Spotted Cetus Guard 20640 | -5/Cetus | Lost 6 allies 20641 | -5/Cetus | Allies destroyed Cetus Guard 20643 | -5/Cetus | Destroyed Cetus Guard 20646 | -5/Cetus | Destroyed Cetus Guard 20648 | -5/Cetus | Destroyed Cetus Guard 20701 | -5/Cetus | Started Cetus Manufacturing Module 20706 | -5/Cetus | Discovered new exit (range 24) 20726 | -5/Cetus | Manufactured an Enhanced Grunt 20733 | -5/Cetus | Spotted Cetus Guard 20733 | -5/Cetus | Spotted Cetus Guard 20733 | -5/Cetus | Spotted Cetus Guard 20733 | -5/Cetus | Spotted Cetus Guard 20735 | -5/Cetus | Discovered exit to Factory (range 23) 20741 | -5/Cetus | Destroyed Cetus Guard 20742 | -5/Cetus | Destroyed Cetus Guard 20745 | -5/Cetus | Destroyed Cetus Guard 20746 | -5/Cetus | Destroyed Cetus Guard 20751 | -5/Cetus | Manufactured an Enhanced Grunt 20760 | -5/Cetus | Met Revision 17 20762 | -5/Cetus | System corruption reached 10% 20776 | -5/Cetus | Manufactured an Enhanced Grunt 20801 | -5/Cetus | Manufactured an Enhanced Grunt 20826 | -5/Cetus | Manufactured an Enhanced Grunt 20911 | -5/Cetus | Murdered A7 20916 | -5/Cetus | Extracted ID and sensor layout for unrecognized location from A7's data core 20937 | -5/Cetus | Entered Archives 20937 | -5/Archives | Accompanied by 7 allies 21053 | -5/Archives | Discovered new exit (range 23) 21056 | -5/Archives | Build established: Scavenger-Tank 21065 | -5/Archives | Discovered exit to Factory (range 16) 21108 | -5/Archives | Discovered new exit (range 21) 21672 | -5/Archives | Entered Hub_04(d) 21672 | -5/Hub_04(d) | Accompanied by 5 allies 21866 | -5/Hub_04(d) | Discovered exit to Factory (range 22) 21902 | -5/Hub_04(d) | Discovered exit to Factory (range 8) 22069 | -5/Hub_04(d) | Network Hub disabled 22178 | -5/Hub_04(d) | Spotted Lightning 22187 | -5/Hub_04(d) | Spotted Lightning 22191 | -5/Hub_04(d) | Destroyed Lightning 22196 | -5/Hub_04(d) | Attached CPS modules to Lightning. 22200 | -5/Hub_04(d) | Destroyed Lightning 22203 | -5/Hub_04(d) | Spotted Lightning 22225 | -5/Hub_04(d) | Destroyed Lightning 22240 | -5/Hub_04(d) | Found Prototype Device 22240 | -5/Hub_04(d) | Identified Exp. Phase Shifter 22256 | -5/Hub_04(d) | Found Prototype Device 22256 | -5/Hub_04(d) | Identified Exp. EM Shield 22264 | -5/Hub_04(d) | Found Prototype Processor 22264 | -5/Hub_04(d) | Identified Exp. Targeting Computer 22300 | -5/Hub_04(d) | Network Hub disabled 22634 | -5/Hub_04(d) | Spotted Lightning 22644 | -5/Hub_04(d) | Spotted Lightning 22644 | -5/Hub_04(d) | Spotted Lightning 22668 | -5/Hub_04(d) | Destroyed Lightning 22691 | -5/Hub_04(d) | Destroyed Lightning 22716 | -5/Hub_04(d) | Destroyed Lightning 22745 | -5/Hub_04(d) | Found Exp. Targeting Computer 22751 | -5/Hub_04(d) | Discovered exit to Factory (range 8) 22844 | -5/Hub_04(d) | Found Prototype Energy Cannon 22872 | -5/Hub_04(d) | First assault squad dispatched 22889 | -5/Hub_04(d) | Network Hub disabled 22895 | -5/Hub_04(d) | Identified EMDS 22940 | -5/Hub_04(d) | Destroyed 8 combat bots 22943 | -5/Hub_04(d) | Lost 5 parts (1n2u2w) 22989 | -5/Hub_04(d) | Spotted Lightning 22991 | -5/Hub_04(d) | Spotted Lightning 22993 | -5/Hub_04(d) | Spotted Lightning 22994 | -5/Hub_04(d) | System corruption reached 30% 23012 | -5/Hub_04(d) | Destroyed Lightning 23028 | -5/Hub_04(d) | Destroyed Lightning 23054 | -5/Hub_04(d) | High security lockdown imminent 23081 | -5/Hub_04(d) | Destroyed Lightning 23111 | -5/Hub_04(d) | Found EMDS 23134 | -5/Hub_04(d) | High security lockdown engaged 23142 | -5/Hub_04(d) | Discovered exit to Factory (range 12) 23155 | -5/Hub_04(d) | Found Exp. EM Shield 23175 | -5/Hub_04(d) | Entered Factory 23175 | -4/Factory | Evolved 2 slots: Utility x2 23176 | -4/Factory | Identified exit to Armory 23426 | -4/Factory | Destroyed 10 combat bots 23552 | -4/Factory | Build established: Scavenger-Gunner 23675 | -4/Factory | First assault squad dispatched 23808 | -4/Factory | Entered Armory 23809 | -4/Armory | Loaded intel: 66 non-interactive machine locations 23964 | -4/Armory | Fabricated Core Analyzer? 24001 | -4/Armory | Unchained authorized (6S-H0T) 24194 | -4/Armory | Lost 7 parts (1p5u1w) 24290 | -4/Armory | Lost 6 parts (2n2u2w) 24343 | -4/Armory | Lost 10 parts (2p1n2u5w) 24356 | -4/Armory | System corruption reached 10% 24395 | -4/Armory | Lost 5 parts (3n1u1w) 24400 | -4/Armory | Destroyed 10 combat bots 24434 | -4/Armory | Spotted Armor Guard 24434 | -4/Armory | Spotted Armor Guard 24447 | -4/Armory | Core integrity fell below 50% 24456 | -4/Armory | Core integrity fell below 20% 24460 | -4/Armory | Destroyed by Armor Guard with Advanced Plasma Rifle Last Messages --------------- 24453_ A bubble of rippling energy engulfs the area. 24453_ Field strength at 70. 24454_ Core Analyzer destroyed. 24454_ Critical hit (Blast). 24454_ Adv. VSS Leg destroyed. 24455_ 6S-H0T reloads Prototype Ballistic Gun with 6S-H0T's SS Cartridge. 24456_ Personal Teleporter v0.10 destroyed. 24457_ 6S-H0T reloads Prototype Ballistic Gun with 6S-H0T's SS Cartridge. 24457_ Critical hit (Burn: +50). 24457_ Penetrated by Slug. 24457_ Hvy. Proton Missile Launcher destroyed. 24458_ HERF Cannon destroyed. 24458_ Slug penetrates Wall. 24458_ Slammed into 6S-H0T. 24458_ Triggered Stasis Trap. 24458_ A bubble of rippling energy engulfs the area. 24458_ Field strength at 94. 24459_ 6S-H0T reloads Prototype Ballistic Gun with 6S-H0T's SS Cartridge. 6S-H0T: "There's more where that came from!" 24459_ Field strength at 40. Map ----- +----------------------------------------------------+ | | | | | | | | | | | | | ?????????????????????????????????????????????????? | | ?????????????????????????????????????????????????? | | ?????????????????????????????????????????????????? | | ?????????????????????????????????????????????????? | | ?????????????????????????????????????????????????? | | ?????????????????????????????????????????????????? | | ?????????????????????????????????????????????????? | | ???????????"""""""""""???###?????????????????????? | | ?????????????????????"??#% #?????????????????????? | | ????????????"""?"""????? Y#??????????????#??##### | | ????????????"?"?"?"????? #?????????????? ? # | | ????????????"""?"""?""??#Y #?????????????? """" # | | ????????????????????""??# #?????????????# """" # | | ????????????"""?"""?""??# #?????????????# """" # | | ????????????"?"?"?"?""??# ##????????????# """" + | | ????????????"""?"""?""??# ;?????????????# # | | ???????????????????"""??# #???"""?"""???# """" # | | ????????????????????????# #???"""?"""???# """" # | | ????????????????????????# #???"""?"""???# """" # | | ????????????????????????#@^#???"""???????# """" # | | ??????????????????????? 8 #???"""???????# # | | ????????????????????? #???"""???????# """" # | | ??????????????????? ####;##???"""???????# """" # | | ????????????????? "???###??????????????# """" # | | ????????????????# ???????????????????????# """" # | | ??????????????? ????????????????????????# # | | ????????????? ??????????????????????????+ # | | ????????????????????????????????????????########## | | ?????????????????????????????????????????????????? | | ?????????????????????????????????????????????????? | | ?????????????????????????????????????????????????? | | ?????????????????????????????????????????????????? | | ????????????"""""""??????????????????????????????? | | ????????????"""""""??????????????????????????????? | | ????????????"""""""??????????????????????????????? | | ?????????????????????????????????????????????????? | | ?????????????????????????????????????????????????? | | ?????????????????????????????????????????????????? | | ?????????????????????????????????????????????????? | | ?????????????????????????????????????????????????? | | ???"??"??????????????????????????????????????????? | | ???"??"??????????????????????????????????????????? | | ???"??"??????????????????????????????????????????? | | ???"??"??????????????????????????????????????????? | +----------------------------------------------------+ Best States ------------- Heat Dissipation 74 Coolant Potential 120 Energy Generation 43 Energy Capacity 540 Matter Stores 300 Matter Capacity 300 Sight Range 24 Terrain Scan Density 10 Jamming Range 16 Cloak Strength 4 Armor Coverage 450 Resistance: EM 75 Phase Shifting 20 Evasion (%) 55 Targeting Accuracy 30 Target Analysis 6 Core Analysis 6 Recoil Reduction 4 Particle Charging 25 Offensive Hacking 32 Defensive Hacking 12 Authchip Count 1 Trap Extractor Capacity 6 Item Schematics ----------------- Hcp. Storage Unit | -9/Recycling | Hacked Imp. Targeting Computer | -9/Recycling | Hacked Hvy. Ion Cannon | -9/Recycling | Hacked Powered Armor | -6/Factory | Hacked Plasma Cutter | -6/Factory | Hacked Core Analyzer | -6/Factory | Hacked Combat Drone Bay | -6/Data Miner | Free Lgt. Regenerative Plating | -6/Data Miner | Free Enh. Armored Leg | -6/Data Miner | Free Prc. Energy Filter | -6/Data Miner | Free Tiamat Missile Launcher | -6/Data Miner | Free Myomer Leg | -6/Data Miner | Free Imp. Point Defense System | -6/Data Miner | Free Force Lance | -6/Data Miner | Free Q-thruster | -6/Data Miner | Free Hvy. Disruptor Cannon | -6/Data Miner | Free Robot Schematics ------------------ M-13 Machinist | -10/Mines | Hacked G-50 Soldier | -6/Data Miner | Free E-15 Imp | -6/Data Miner | Free P-60 Hacker | -6/Data Miner | Free A-15 Conveyor | -6/Data Miner | Free H-77 Assassin | -6/Data Miner | Free Fabricated ------------ Plasma Cutter | x2 | -6/Factory Tiamat Missile Launcher | x1 | -5/Factory | Authchip Core Analyzer | x2 | -4/Armory | Authchip Repaired ---------- Ion Engine | 60% | -10/Materials Heat Sink | 66% | -10/Materials Lgt. Treads | 80% | -10/Materials Imp. Light Armor Plating | 22% | -9/Materials Arm. Treads | 62% | -9/Materials Imp. Grenade Launcher | 72% | -9/Materials | Broken Adv. Treads | 18% | -9/Storage Imp. Ion Engine | 15% | -9/Storage Cooling System | 48% | -9/Storage Centrium Light Armor Plating | 81% | -9/Storage Arm. Treads | 53% | -9/Storage Centrium Light Armor Plating | 57% | -6/Factory Arm. Wheel | 13% | -6/Factory Gauss Rifle | 95% | -5/Factory | Corrupted Gauss Rifle | 70% | -5/Factory | Corrupted Studied --------- Hvy. Assault Rifle | -9/Materials | Hacked Arm. Wheel | -9/Materials | Hacked Imp. Ion Engine | -9/Materials | Hacked Maul | -9/Materials | Hacked Autogun | -6/Factory | Hacked Gauss Rifle | -6/Factory | Hacked Hvy. Plasma Cannon | -6/Factory | Hacked Wheel | -6/Factory | Hacked Arm. Huge Wheel | -6/Factory | Hacked Shock Rifle | -6/Factory | Hacked Alien Tech Used ----------------- None Achievements -------------- Bob, First Of His Name Frienemies Hydra My Business Is Booming Professional Mechanic Challenges ------------ None Game ------ Seed TargetScatterMapper Manual? 0 Play Time 04:49:19 Cumulative 663.8 hours Start 2025.11.29 @ 21:01:25 End 2025.12.01 @ 12:34:21 Sessions 3 Manual Loads 0 Difficulty Rogue Special Mode None Game No. 221 Rogue 205 Adventurer 15 Explorer 1 Win Type - Total 39 Types 10/3/10/2/2/0/6/3/1/2 Lore% 94 Gallery% 88 Achievement% 65 Wizard Run 0 Options --------- Layout 0 ASCII 0 Keyboard 0 Movement Numpad Keybinds 0 Fullscreen 1 Font 18/SmallcapsGlow Map View 76x50 Zoom Use 0% Tactical HUD 1 Map Filters NONE Filters NONE Steam 1 RUN: 545d777f-3b5b-49cb-bc7a-fed9f99466ce